bitfinex/quotes_SOLUSD_20241016
["timestamp","ask_amount","ask_price","bid_price","bid_amount"]
[1729089559845,6.4625,154.74,154.69,6.4642]
[1729089560259,6.4608,154.78,154.73,6.4628]
[1729089560432,6.46,154.8,154.75,6.462]
[1729089560629,6.4594,154.82,154.77,6.461]
[1729089560929,6.4595,154.81,154.76,22.6151]
[1729089561333,6.4596,154.81,154.76,16.1536]
[1729089561540,6.5293,154.85,154.76,16.1536]
[1729089561541,6.4583,154.84,154.76,16.1536]
[1729089562345,6.4587,154.83,154.76,16.1536]
[1729089562846,6.4581,154.85,154.78,16.1511]
[1729089563052,31.8972,154.87,154.78,16.1511]
[1729089563233,6.4582,154.84,154.78,16.1511]
[1729089563625,6.4588,154.83,154.78,16.1511]
[1729089563845,23.776884,154.86,154.78,16.1511]
[1729089564757,6.4592,154.82,154.78,16.1511]
[1729089565260,6.46,154.8,154.75,6.4616]
[1729089565838,6.4595,154.81,154.76,6.4615]
[1729089566030,6.4595,154.81,154.74,16.1552]
[1729089566226,6.4595,154.81,154.77,6.4611]
[1729089566949,23.776884,154.86,154.77,16.1529]
[1729089567122,23.776884,154.86,154.77,22.6137]
[1729089567523,23.776884,154.86,154.78,6.4606]
[1729089567748,23.776884,154.86,154.77,16.1529]
[1729089568055,6.4583,154.84,154.77,16.1529]
[1729089568433,6.4594,154.82,154.77,22.6139]
[1729089568644,6.4586,154.83,154.78,6.4604]
[1729089569159,6.4586,154.83,154.77,16.1529]
[1729089569160,6.4591,154.82,154.77,16.1529]
[1729089569445,6.4598,154.81,154.77,16.1529]
[1729089569648,39.921084,154.86,154.77,16.1529]
[1729089569854,6.4587,154.83,154.78,6.4607]
[1729089570051,15.7545,154.87,154.81,6.4593]
[1729089570052,6.4578,154.85,154.81,6.4593]
[1729089570258,6.4571,154.87,154.82,22.6066]
[1729089570435,6.4571,154.87,154.83,6.4586]
[1729089570632,6.4567,154.88,154.83,6.4586]
[1729089571040,6.4571,154.87,154.82,16.1477]
[1729089571246,15.4369,154.91,154.82,16.1477]
[1729089571437,6.4561,154.9,154.85,6.4577]
[1729089571750,13.09651138,154.93,154.88,6.4565]
[1729089571953,13.09651138,154.93,154.82,15.9031]
[1729089571954,6.64191138,154.93,154.9,6.4557]
[1729089572135,6.4542,154.94,154.89,6.4561]
[1729089572335,6.4553,154.91,154.86,6.4574]
[1729089572749,15.5649,154.95,154.82,32.0508]
[1729089572965,6.4571,154.87,154.82,22.6067]
[1729089573262,6.4575,154.86,154.82,16.1477]
[1729089573432,6.4856,154.89,154.78,16.151]
[1729089573643,6.4588,154.83,154.78,22.6114]
[1729089573946,23.776884,154.88,154.78,22.6114]
[1729089573947,6.4583,154.84,154.79,6.4602]
[1729089574758,39.919084,154.88,154.8,6.4599]
[1729089575058,20.0,154.87,154.73,6.372]
[1729089575230,6.4598,154.81,154.75,16.1548]
[1729089575549,6.4598,154.81,154.76,6.4615]
[1729089575858,6.4591,154.82,154.75,16.1548]
[1729089576155,6.4585,154.84,154.78,6.4606]
[1729089576332,23.776884,154.88,154.8,16.1498]
[1729089576531,0.1,154.93,154.81,6.4592]
[1729089576532,6.4572,154.87,154.81,6.4592]
[1729089576732,16.1377,154.92,154.81,6.4592]
[1729089577036,6.4579,154.85,154.8,22.6096]
[1729089577256,6.2161,154.84,154.75,16.1545]
[1729089577553,6.459,154.83,154.77,6.4608]
[1729089577755,6.2161,154.84,154.77,6.4608]
[1729089577954,6.2161,154.84,154.7,32.4195]
[1729089577955,6.4602,154.8,154.75,6.4619]
[1729089578161,6.4602,154.8,154.73,16.1569]
[1729089578338,23.776884,154.83,154.73,16.1569]
[1729089578981,6.2161,154.84,154.75,16.1544]
[1729089579134,6.4599,154.8,154.75,22.6163]
[1729089579335,6.4596,154.81,154.76,6.4615]
[1729089579543,6.4586,154.84,154.79,6.4603]
[1729089579753,6.4587,154.83,154.78,22.6118]
[1729089580266,20.0,154.87,154.78,16.1512]
[1729089580433,6.4583,154.84,154.79,6.4602]
[1729089580639,6.4587,154.83,154.79,6.4602]
[1729089580963,20.0,154.87,154.79,6.4602]
[1729089581141,6.4583,154.84,154.79,6.4602]
[1729089582042,23.776884,154.86,154.75,16.1546]
[1729089582237,20.0,154.86,154.7,32.3195]
[1729089582431,6.4608,154.78,154.72,16.1578]
[1729089582749,6.4609,154.78,154.73,6.4625]
[1729089583157,6.4609,154.78,154.74,6.4623]
[1729089583342,6.4604,154.79,154.74,6.4623]
[1729089584456,16.1463,154.84,154.71,0.1]
[1729089584650,6.4591,154.82,154.77,6.4611]
[1729089585057,6.4588,154.83,154.76,16.1534]
[1729089585238,22.78983629,154.87,154.76,16.1534]
[1729089585239,23.776884,154.86,154.76,16.1534]
[1729089585565,6.4594,154.82,154.77,6.4611]
[1729089586445,6.4588,154.83,154.78,6.4606]
[1729089587836,6.4588,154.83,154.76,16.1534]
[1729089587837,6.4594,154.82,154.77,6.4611]
[1729089588162,6.4594,154.82,154.76,16.1534]
[1729089588337,6.4585,154.84,154.79,6.4602]
[1729089588539,16.143,154.87,154.77,6.4607]
[1729089588540,23.776884,154.86,154.77,6.4607]
[1729089588773,6.4598,154.81,154.76,6.4612]
[1729089588940,23.776884,154.84,154.75,28.6426]
[1729089589138,6.46,154.8,154.75,22.6163]
[1729089590075,6.4606,154.79,154.75,16.1544]
[1729089590245,6.4606,154.79,154.75,22.6163]
[1729089590446,6.4606,154.79,154.75,16.1544]
[1729089591673,20.0,154.79,154.67,6.0768]
[1729089591881,20.0,154.79,154.66,6.4656]
[1729089591882,6.4637,154.71,154.66,6.4656]
[1729089592169,6.4641,154.7,154.65,23.2703282]
[1729089592463,6.4646,154.69,154.65,0.6396282]
[1729089592770,32.3048,154.78,154.65,0.6396282]
[1729089592967,23.776884,154.75,154.65,0.6396282]
[1729089593158,16.1569,154.74,154.65,0.6396282]
[1729089593357,6.4646,154.69,154.65,0.6396282]
[1729089593869,6.4646,154.69,154.65,7.1057282]
[1729089594375,6.4656,154.67,154.65,0.6396282]
[1729089595081,6.4657,154.66,154.65,0.6396282]
[1729089595846,16.1616,154.69,154.65,0.6396282]
[1729089596056,6.4649,154.69,154.65,0.6396282]
[1729089596477,6.465,154.68,154.65,0.6396282]
[1729089596656,6.4645,154.69,154.65,0.6396282]
[1729089596865,6.4649,154.68,154.65,0.6396282]
[1729089597055,6.4646,154.69,154.65,0.6396282]
[1729089598361,6.4657,154.67,154.65,0.6396282]
[1729089599084,6.465,154.68,154.65,0.6396282]
[1729089600064,6.4655,154.67,154.65,0.6396282]
[1729089600268,6.4657,154.66,154.65,0.6396282]
[1729089600652,6.4657,154.67,154.65,0.6396282]
[1729089600869,6.4657,154.66,154.65,0.6396282]
[1729089602082,6.4645,154.69,154.65,0.6396282]
[1729089602252,15.2435,154.71,154.65,16.8049282]
[1729089602253,6.4641,154.7,154.65,16.8049282]
[1729089602453,6.64674781,154.73,154.7,6.464]
[1729089602676,6.64674781,154.73,154.69,16.1604]
[1729089602860,6.4627,154.74,154.69,22.6248]
[1729089603058,22.7576,154.78,154.69,16.1604]
[1729089603781,6.4622,154.75,154.7,6.464]
[1729089603960,6.4631,154.73,154.69,16.1604]
[1729089604357,22.7576,154.78,154.65,32.9698282]
[1729089604358,6.4634,154.72,154.67,6.4649]
[1729089604863,6.6049,154.78,154.66,16.1643]
[1729089605052,16.1546,154.76,154.66,16.1643]
[1729089605377,23.776884,154.77,154.65,7.1057282]
[1729089605378,6.4645,154.69,154.65,7.1057282]
[1729089605883,6.4642,154.7,154.65,7.1057282]
[1729089606256,6.4635,154.72,154.65,16.8041282]
[1729089606554,23.776884,154.77,154.65,0.6396282]
[1729089606555,6.4628,154.73,154.65,0.6396282]
[1729089606750,6.4628,154.73,154.68,6.4648]
[1729089607189,39.930384,154.77,154.67,16.1625]
[1729089607190,6.4638,154.71,154.67,16.1625]
[1729089607480,23.776884,154.74,154.65,0.6396282]
[1729089607656,6.4657,154.66,154.65,0.6396282]
[1729089609389,6.465,154.68,154.65,0.6396282]
[1729089609955,15.342,154.7,154.65,0.6396282]
[1729089610157,6.4657,154.66,154.65,0.6396282]
[1729089612580,6.4653,154.67,154.65,0.6396282]
[1729089612783,15.342,154.7,154.65,0.6396282]
[1729089612784,6.465,154.68,154.65,0.6396282]
[1729089613160,6.4654,154.67,154.65,0.6396282]
[1729089613470,6.465,154.68,154.65,0.6396282]
[1729089613988,6.4645,154.69,154.65,0.6396282]
[1729089615285,6.74090889,154.72,154.65,0.6396282]
[1729089615458,6.462,154.75,154.68,16.1617]
[1729089615657,6.4617,154.76,154.71,6.4637]
[1729089616284,6.462,154.75,154.7,6.464]
[1729089616454,16.1128,154.78,154.66,0.1]
[1729089616660,6.4608,154.78,154.73,6.4628]
[1729089616885,6.4612,154.77,154.72,6.4632]
[1729089617878,6.4617,154.76,154.71,6.4636]
[1729089618492,6.7378083,154.82,154.71,21.8743]
[1729089618787,6.2299,154.86,154.73,0.1]
[1729089618967,12.55109754,154.85,154.76,23.776884]
[1729089619168,4.82734521,154.84,154.8,22.6096]
[1729089619364,6.4576,154.86,154.8,22.6096]
[1729089619579,6.4597,154.81,154.72,23.776884]
[1729089619882,6.4597,154.81,154.74,16.156]
[1729089620179,6.4592,154.82,154.77,6.4611]
[1729089620395,0.1,154.86,154.71,21.7743]
[1729089620567,6.0151,154.81,154.71,22.5828]
[1729089620885,6.4616,154.76,154.71,29.0464]
[1729089621185,6.0151,154.81,154.71,22.5828]
[1729089621392,6.4614,154.77,154.71,29.0461]
[1729089621564,6.4619,154.76,154.71,6.4238]
[1729089621886,6.4619,154.76,154.71,12.8874]
[1729089622996,6.4612,154.77,154.72,6.4632]
[1729089623160,6.4617,154.76,154.71,6.4238]
[1729089623566,23.776884,154.8,154.67,21.3986]
[1729089623792,16.1551,154.75,154.65,0.6396282]
[1729089624093,12.56231196,154.74,154.65,0.6396282]
[1729089624260,6.4646,154.69,154.65,0.6396282]
[1729089625095,6.4637,154.71,154.65,7.1054282]
[1729089625392,72.233984,154.78,154.65,16.8043282]
[1729089625577,6.4625,154.74,154.69,6.4644]
[1729089625981,55.429284,154.78,154.65,0.6396282]
[1729089626293,12.55336852,154.77,154.67,16.1627]
[1729089626595,17.37411913,154.76,154.67,16.1627]
[1729089626769,16.1551,154.75,154.65,0.6396282]
[1729089626971,6.4637,154.71,154.66,6.4657]
[1729089627275,6.4639,154.71,154.66,22.6291]
[1729089627477,16.1579,154.73,154.65,0.6396282]
[1729089627667,22.269,154.73,154.65,0.6396282]
[1729089629194,33.52841913,154.76,154.65,16.8044282]
[1729089629393,6.4646,154.69,154.65,16.8044282]
[1729089629599,6.4657,154.66,154.65,0.6396282]
[1729089630994,6.4653,154.68,154.65,0.6396282]
[1729089631203,32.413,154.74,154.65,0.6396282]
[1729089631204,6.4641,154.7,154.65,7.1057282]
[1729089631488,24.11658246,154.76,154.65,0.6396282]
[1729089631694,40.27108246,154.76,154.65,16.8041282]
[1729089631870,6.4633,154.72,154.67,6.4653]
[1729089632070,6.4633,154.72,154.67,6.4649]
[1729089632300,40.27108246,154.76,154.67,6.4649]
[1729089632301,40.27108246,154.76,154.68,6.4649]
[1729089632471,6.4628,154.74,154.69,6.4644]
[1729089633294,6.4628,154.73,154.69,6.4644]
[1729089634300,12.85155084,154.77,154.67,16.1627]
[1729089634594,6.4638,154.71,154.67,16.1627]
[1729089634795,16.1541,154.76,154.65,0.6396282]
[1729089635002,16.1541,154.76,154.65,7.1054282]
[1729089635003,6.4641,154.7,154.65,7.1054282]
[1729089635203,6.4641,154.7,154.66,6.4657]
[1729089635370,6.4641,154.7,154.65,7.1057282]
[1729089635579,16.1567,154.74,154.66,6.4655]
[1729089635781,6.4637,154.71,154.66,6.4655]
[1729089637586,16.1567,154.74,154.65,7.1057282]
[1729089637903,16.1586,154.72,154.65,0.6396282]
[1729089638200,6.4657,154.66,154.65,0.6396282]
[1729089639877,43.776884,154.73,154.65,0.6396282]
[1729089640112,16.1575,154.73,154.65,0.6396282]
[1729089640404,6.4655,154.67,154.65,0.6396282]
[1729089640777,6.4657,154.66,154.65,0.6396282]
[1729089641793,6.4652,154.68,154.65,0.6396282]
[1729089641977,6.4657,154.66,154.65,0.6396282]
[1729089642997,6.468,154.61,154.56,6.4696]
[1729089643210,16.1654,154.66,154.55,13.0039]
[1729089643211,6.4686,154.6,154.55,13.0039]
[1729089643501,6.4676,154.62,154.58,6.469]
[1729089643705,6.4673,154.63,154.58,6.469]
[1729089643883,6.4673,154.63,154.57,16.1737]
[1729089644203,23.876884,154.67,154.55,6.5336]
[1729089644411,6.4688,154.59,154.55,13.0035]
[1729089644578,6.4684,154.6,154.55,13.0035]
[1729089644781,16.1671,154.64,154.57,6.4695]
[1729089645195,6.83207722,154.68,154.54,16.177]
[1729089645196,6.4692,154.58,154.54,16.177]
[1729089645402,6.4683,154.6,154.55,6.47]
[1729089645703,16.166,154.65,154.54,16.177]
[1729089645890,6.469,154.59,154.54,16.177]
[1729089646096,6.4692,154.58,154.54,16.177]
[1729089646283,16.168,154.63,154.54,16.177]
[1729089646486,6.83207722,154.68,154.51,22.549]
[1729089646487,43.776884,154.67,154.56,16.1745]
[1729089646802,6.4679,154.61,154.56,22.6441]
[1729089647215,6.73207722,154.68,154.56,16.1745]
[1729089647502,6.73207722,154.68,154.6,6.4682]
[1729089647503,6.4665,154.65,154.6,6.4682]
[1729089647705,6.4666,154.64,154.6,22.6384]
[1729089647904,6.4671,154.63,154.58,6.4688]
[1729089648110,16.1659,154.65,154.57,16.1733]
[1729089648288,6.4682,154.61,154.57,16.1733]
[1729089648608,6.4686,154.6,154.55,6.4703]
[1729089649106,6.4691,154.58,154.54,22.6472]
[1729089649401,6.4683,154.6,154.55,6.47]
[1729089649603,16.168,154.63,154.56,6.4698]
[1729089649790,6.4682,154.61,154.56,6.4698]
[1729089650695,43.776884,154.67,154.54,16.1765]
[1729089651003,6.4679,154.61,154.54,16.1765]
[1729089651307,6.4679,154.61,154.57,6.4695]
[1729089651692,6.4684,154.6,154.56,6.4699]
[1729089651895,6.4687,154.59,154.54,16.1765]
[1729089652087,6.4683,154.6,154.55,6.4701]
[1729089652603,6.4687,154.59,154.55,6.4701]
[1729089653003,6.4686,154.6,154.55,6.4701]
[1729089653704,6.468,154.61,154.57,6.4695]
[1729089653883,6.4671,154.63,154.59,6.4686]
[1729089654084,6.4675,154.62,154.58,6.469]
[1729089654288,6.468,154.61,154.57,6.4694]
[1729089654495,6.468,154.61,154.56,16.1742]
[1729089654710,6.468,154.61,154.56,22.644]
[1729089655003,6.73123786,154.66,154.56,16.1742]
[1729089655204,6.4156,154.69,154.55,0.1]
[1729089655410,6.4654,154.67,154.55,0.2]
[1729089655588,6.4658,154.66,154.62,6.4671]
[1729089655779,6.4156,154.69,154.56,0.1]
[1729089655981,6.4653,154.68,154.63,22.6342]
[1729089656183,6.4156,154.69,154.54,43.776884]
[1729089656385,6.4678,154.62,154.57,6.4691]
[1729089656604,6.4679,154.61,154.57,22.6425]
[1729089656794,6.4675,154.62,154.57,22.6425]
[1729089656997,6.4679,154.61,154.57,16.1734]
[1729089658494,6.4679,154.61,154.57,22.6427]
[1729089658714,6.4675,154.62,154.57,22.6427]
[1729089659400,6.4156,154.69,154.53,32.3541]
[1729089659401,6.4156,154.69,154.59,16.1712]
[1729089659587,6.4658,154.66,154.59,16.1712]
[1729089659784,6.4156,154.69,154.57,32.3466]
[1729089659985,6.4655,154.67,154.62,6.4671]
[1729089660412,6.4156,154.69,154.57,32.3466]
[1729089660594,6.4156,154.69,154.58,22.6414]
[1729089660595,6.4677,154.62,154.58,22.6414]
[1729089660806,6.4679,154.61,154.58,16.1723]
[1729089661001,6.4156,154.69,154.58,16.1723]
[1729089661310,6.4671,154.63,154.59,6.4684]
[1729089661999,15.8382,154.7,154.58,6.4487]
[1729089662191,6.4645,154.69,154.64,6.4663]
[1729089662395,6.4645,154.69,154.65,6.4661]
[1729089662790,15.8382,154.7,154.6,15.1733]
[1729089663110,15.8382,154.7,154.63,16.1672]
[1729089663311,6.4645,154.69,154.65,6.4659]
[1729089663613,38.6167,154.73,154.6,15.1733]
[1729089663907,6.4663,154.65,154.61,16.1691]
[1729089664116,6.4667,154.64,154.6,6.4679]
[1729089664281,0.1,154.72,154.58,29.0899]
[1729089664282,6.4673,154.63,154.58,29.0899]
[1729089664484,6.4673,154.63,154.58,16.1722]
[1729089664887,16.163,154.68,154.6,6.4679]
[1729089665115,6.4665,154.65,154.6,6.4679]
[1729089665819,6.4665,154.65,154.61,6.4678]
[1729089665993,6.4658,154.66,154.62,6.4672]
[1729089666200,16.1594,154.71,154.6,16.1702]
[1729089666406,6.4663,154.65,154.6,22.6383]
[1729089666609,16.1594,154.71,154.6,16.1702]
[1729089666914,6.4662,154.65,154.61,6.4675]
[1729089667122,16.1637,154.67,154.57,16.1734]
[1729089667301,32.3227,154.69,154.57,16.1734]
[1729089667302,16.1659,154.65,154.57,16.1734]
[1729089667496,6.4679,154.61,154.57,22.6428]
[1729089667906,39.011584,154.68,154.57,16.1734]
[1729089669124,16.1648,154.66,154.57,16.1734]
[1729089669496,6.4658,154.66,154.57,32.3477]
[1729089669697,31.1941,154.72,154.65,6.466]
[1729089669913,31.1941,154.72,154.64,6.4662]
[1729089670108,31.1941,154.72,154.63,16.1668]
[1729089670319,15.0355,154.72,154.6,16.3341]
[1729089670621,6.4667,154.64,154.6,22.8023]
[1729089670916,15.0355,154.72,154.6,22.8023]
[1729089670917,6.466,154.66,154.62,6.4674]
[1729089671121,6.4662,154.65,154.61,16.1692]
[1729089671299,16.1631,154.68,154.59,6.4686]
[1729089671503,6.4675,154.62,154.58,6.469]
[1729089671825,0.1,154.7,154.57,22.6423]
[1729089671826,6.4679,154.61,154.57,22.6423]
[1729089671998,6.4669,154.64,154.59,6.4685]
[1729089672203,16.1619,154.69,154.6,6.4682]
[1729089672405,6.4667,154.64,154.6,6.4682]
[1729089673218,6.4653,154.67,154.63,6.4669]
[1729089673799,6.4653,154.67,154.62,6.4673]
[1729089674036,6.465,154.68,154.63,16.1671]
[1729089674225,6.4642,154.7,154.65,6.4658]
[1729089674723,31.1942,154.72,154.63,22.6337]
[1729089674923,6.7347826,154.73,154.63,6.2604]
[1729089675122,15.9039,154.76,154.67,16.1625]
[1729089675326,15.9039,154.76,154.63,6.3604]
[1729089675327,6.4619,154.76,154.71,6.4634]
[1729089675619,6.73263599,154.78,154.69,16.1603]
[1729089675824,6.73263599,154.78,154.65,16.1648]
[1729089676013,6.4644,154.7,154.65,22.6306]
[1729089676560,16.1548,154.76,154.66,6.4657]
[1729089676702,6.4637,154.71,154.66,6.4657]
[1729089676900,16.1548,154.76,154.63,6.2604]
[1729089677129,6.4627,154.74,154.69,6.4642]
[1729089677316,6.4627,154.74,154.67,16.1627]
[1729089677317,6.464,154.71,154.67,16.1627]
[1729089677825,6.4633,154.72,154.67,22.6279]
[1729089678002,6.4638,154.71,154.67,16.1627]
[1729089678405,39.930584,154.77,154.67,16.1627]
[1729089678621,6.4629,154.73,154.68,6.4646]
[1729089679223,16.1537,154.77,154.68,6.4646]
[1729089679424,6.4629,154.73,154.68,6.4646]
[1729089679819,6.4634,154.72,154.68,6.4646]
[1729089680010,6.462,154.75,154.71,6.4636]
[1729089680622,6.462,154.75,154.7,16.1602]
[1729089680829,6.462,154.75,154.7,22.6243]
[1729089681012,6.4624,154.74,154.7,22.6243]
[1729089681614,16.15,154.8,154.72,6.4631]
[1729089681816,28.17043017,154.82,154.73,16.1571]
[1729089682009,28.17043017,154.82,154.68,16.6444]
[1729089682314,6.4616,154.76,154.71,6.4634]
[1729089684038,16.1517,154.79,154.69,6.4642]
[1729089684221,28.27043017,154.82,154.67,22.6278]
[1729089684222,6.4635,154.72,154.67,22.6278]
[1729089684840,16.1538,154.77,154.68,6.4649]
[1729089685135,32.3014,154.8,154.7,6.4638]
[1729089685341,32.3014,154.8,154.69,16.1606]
[1729089685342,6.4617,154.76,154.71,6.4634]
[1729089685917,6.4615,154.77,154.72,6.4629]
[1729089686231,28.17043017,154.82,154.73,16.1563]
[1729089686410,28.17043017,154.82,154.71,6.6603]
[1729089686937,16.1514,154.79,154.7,16.1598]
[1729089687141,6.4628,154.74,154.7,16.1598]
[1729089687644,6.4637,154.71,154.67,6.4653]
[1729089687827,6.4641,154.7,154.66,16.1636]
[1729089688035,6.465,154.68,154.63,29.226]
[1729089688328,6.465,154.68,154.64,6.4666]
[1729089688738,0.1,154.73,154.6,31.437]
[1729089688913,6.4666,154.64,154.6,16.1706]
[1729089689117,16.1619,154.69,154.6,16.1706]
[1729089689317,6.4654,154.67,154.6,16.1706]
[1729089689543,16.1582,154.72,154.62,16.1679]
[1729089689746,6.4653,154.67,154.62,22.635]
[1729089689919,6.4647,154.69,154.62,16.1679]
[1729089690120,6.4647,154.69,154.64,6.4666]
[1729089690629,6.6303,154.75,154.6,23.876884]
[1729089690947,6.4636,154.72,154.67,6.4653]
[1729089691323,6.8303,154.75,154.61,16.1689]
[1729089691519,6.4665,154.65,154.61,16.1689]
[1729089691826,6.4662,154.65,154.6,6.4679]
[1729089692034,6.4662,154.65,154.61,6.4677]
[1729089692337,16.1583,154.72,154.58,32.3452]
[1729089692640,6.4653,154.68,154.63,22.6337]
[1729089692849,6.4657,154.67,154.63,16.1668]
[1729089693025,6.4663,154.65,154.61,6.4678]
[1729089693230,16.161,154.7,154.62,6.4673]
[1729089693231,6.4658,154.66,154.62,6.4673]
[1729089693434,6.4658,154.66,154.6,6.4679]
[1729089693638,6.4658,154.66,154.61,6.4676]
[1729089693834,6.4662,154.65,154.6,6.4682]
[1729089694151,6.4646,154.69,154.64,6.4662]
[1729089694444,6.4652,154.68,154.64,6.4665]
[1729089694743,6.4652,154.68,154.63,6.4669]
[1729089695142,39.934584,154.73,154.63,6.4669]
[1729089695442,39.934584,154.73,154.61,6.4675]
[1729089695443,6.4662,154.65,154.61,6.4675]
[1729089695637,6.4648,154.69,154.64,16.1656]
[1729089695833,6.4648,154.69,154.65,6.4662]
[1729089696040,6.4648,154.69,154.64,22.6321]
[1729089696347,6.4653,154.67,154.62,6.4671]
[1729089696516,6.4653,154.67,154.61,16.1695]
[1729089696723,6.465,154.68,154.63,6.4669]
[1729089697439,6.465,154.68,154.61,16.1695]
[1729089697739,6.4646,154.69,154.64,6.4663]
[1729089698742,6.73739226,154.74,154.59,38.9355]
[1729089699065,16.1607,154.7,154.6,16.1702]
[1729089699257,6.4666,154.64,154.6,22.6383]
[1729089700124,16.0377,154.68,154.6,22.6383]
[1729089700329,6.4667,154.64,154.6,22.6383]
[1729089702444,22.5022,154.66,154.57,22.6427]
[1729089703323,6.4674,154.63,154.58,6.469]
[1729089703552,22.5022,154.66,154.57,16.1733]
[1729089703752,16.0377,154.68,154.55,6.5885]
[1729089703753,16.0377,154.68,154.6,6.4682]
[1729089703931,6.4667,154.64,154.6,6.4682]
[1729089706157,6.4377,154.7,154.62,16.1685]
[1729089706326,32.7458,154.72,154.62,16.1685]
[1729089706327,6.465,154.68,154.62,16.1685]
[1729089706651,6.465,154.68,154.64,6.4666]
[1729089706858,6.465,154.68,154.63,6.4669]
[1729089707232,6.465,154.68,154.62,16.1685]
[1729089707555,6.465,154.68,154.64,6.4665]
[1729089708255,6.4662,154.66,154.62,16.1685]
[1729089708447,16.1606,154.7,154.62,16.1685]
[1729089708637,6.4649,154.69,154.64,6.4665]
[1729089709035,6.4649,154.69,154.65,6.4662]
[1729089709435,6.4651,154.68,154.64,6.4665]
[1729089709925,6.4651,154.68,154.63,6.4669]
[1729089710132,16.1596,154.71,154.62,16.1685]
[1729089710435,16.587,154.72,154.6,16.5575]
[1729089710651,16.587,154.72,154.64,16.1659]
[1729089710831,6.4642,154.7,154.66,6.4654]
[1729089711352,6.4637,154.71,154.67,6.465]
[1729089711558,22.1652,154.74,154.66,16.164]
[1729089711559,6.4642,154.7,154.66,16.164]
[1729089712432,6.4637,154.71,154.67,6.4653]
[1729089712832,6.4644,154.7,154.66,16.164]
[1729089713050,22.1652,154.74,154.64,6.4665]
[1729089713429,22.1652,154.74,154.61,6.4677]
[1729089713430,6.4664,154.65,154.61,6.4677]
[1729089713949,6.4649,154.68,154.64,6.4662]
[1729089714152,16.1577,154.73,154.64,6.4662]
[1729089714330,6.4646,154.69,154.65,6.4661]
[1729089714537,6.4646,154.69,154.62,16.1681]
[1729089714751,6.4646,154.69,154.64,6.4665]
[1729089716042,6.4646,154.69,154.62,16.1681]
[1729089716242,6.4646,154.69,154.65,6.4661]
[1729089716448,6.4653,154.68,154.63,6.4666]
[1729089716634,6.4653,154.68,154.62,16.1681]
[1729089717333,6.4653,154.68,154.64,6.4666]
[1729089719641,6.4658,154.66,154.62,22.6351]
[1729089719847,6.4667,154.64,154.59,22.6396]
[1729089720157,6.4667,154.64,154.59,22.6398]
[1729089720354,6.4667,154.64,154.59,16.1713]
[1729089720571,6.4674,154.63,154.59,16.1713]
[1729089720732,16.164,154.67,154.59,16.1713]
[1729089720733,6.4676,154.62,154.59,16.1713]
[1729089720937,6.4676,154.62,154.58,6.4687]
[1729089721750,6.4682,154.61,154.56,38.3023]
[1729089722060,6.469,154.59,154.55,6.4701]
[1729089722261,6.5546,154.66,154.55,0.1]
[1729089722441,32.005,154.68,154.61,6.4676]
[1729089722935,6.4664,154.65,154.6,6.4682]
[1729089723465,15.8424,154.68,154.53,6.2616]
[1729089723763,15.8424,154.68,154.57,6.4692]
[1729089723764,6.4675,154.62,154.57,6.4692]
[1729089723965,6.4674,154.63,154.58,6.4688]
[1729089724151,6.4666,154.64,154.59,6.4683]
[1729089724343,6.4666,154.64,154.59,6.4686]
[1729089724534,6.4674,154.62,154.58,16.1719]
[1729089724738,6.4666,154.64,154.6,6.4681]
[1729089724939,16.1641,154.67,154.58,16.1719]
[1729089725160,16.166,154.65,154.56,6.4699]